{"text_format":"1","workbook":"xlsx","n_sheets":24,"sheets":["Start","Sisukord","Abivahendid","Rak_Str","Objektid","Klassimudel","Liides_2016","Liidesed","Objektimenüüd","Töövihik","Tööleht","Diagrammileht","Teg_Lehed","Lahtriplokk","LP_Omadused","LP_Tegev","LP_Harj","Read_Veerud","Re_Ve_H1","Formaat","Number Format","Värvilised summad","Kontroll","Juhus"],"not_rendered":{"charts":3,"images":38,"macros":1,"external_links":1,"defined_names":43,"comments":4,"pivot_tables":0},"unopened":[{"sheet":"Diagrammileht","index":11,"reason":"not_a_worksheet"}],"bounds":{"document_bytes":16777216,"sheet_cells":100000,"rows_first":2000,"rows_last":500,"rows_between":2000,"halvings":0,"cell_chars":16384,"cell_head_chars":4096},"cells_cut":0,"cells_raw":0,"read":"whole","date_system":"1900"}

{"sheet":"Start","index":0,"n_rows":12,"n_cols":9,"rows_kept":12,"cut":false,"hidden":false,"merged":[[11,8,11,9]]}
[]
[]
[]
[]
[null,null,null,null,null,"Exceli töökeskkond"]
[]
[]
[]
[]
[]
[]
[null,null,null,null,null,null,null," ","Sisukord"]

{"sheet":"Sisukord","index":1,"n_rows":24,"n_cols":4,"rows_kept":24,"cut":false,"hidden":false,"merged":[]}
[]
[]
[null,"Exceli töökeskkond"]
[]
[null,"Abivahendid",null,"Materjalid veebis (TTÜ)"]
[null,"Rakenduse struktuur ja põhikomponendid"]
[null,"Rakenduse põhiobjektid",null,"Excel 2016, spikker (Microsoft)"]
[null,"Klassimudel",null,"Excel 2013 lühijuhend (Microsoft)"]
[null,"Exceli kasutajaliides"]
[null,"Ekraanikuva ja standardiides"]
[null,"Erinevate versioonide kasutajaliidesed"]
[null,"Objektimenüüd"]
[null,"Töövihikud"]
[null,"Töölehed"]
[null,"Diagrammilehed"]
[null,"Põhitegevused lehtedega"]
[null,"Lahtrid, lahtriplokid, piirkonnad"]
[null,"Põhiomadused"]
[null,"Põhitegevused"]
[null,"Harjutus lahtriplokidega"]
[null,"Juhuslike arvude kasutamine"]
[null,"Read ja veerud"]
[null,"Harjutus ridade ja veergudega"]
[null,"Testike"]

{"sheet":"Abivahendid","index":2,"n_rows":20,"n_cols":9,"rows_kept":20,"cut":false,"hidden":false,"merged":[[19,6,19,7],[16,8,16,9],[15,8,15,9],[18,6,18,8]]}
[]
[]
[]
[]
[null,"Kommentaar"]
[null,"Autor","Abiinfo spikrid klahv F1"]
[]
[]
[]
[]
[]
[]
[]
[]
[null,null,null,null,null,null,"Lingid antud vihikus",null,"Lingid teistele dokumentidele"]
[null,null,null,null,null,null,"Objektid",null,"Word. Exceli e-õpik"]
[null,null,null,null,null,null,"Tööleht",null,"Excel. Mäng \"Jalka\""]
[null,null,null,null,null,null,"Veebi leheküljed (saidid)"]
[null,null,"Delfi",null,"tehke link",null,"Microsofti kodusait"]
[null,null,null,null,null,null,"Google kodusait"]

{"sheet":"Rak_Str","index":3,"n_rows":10,"n_cols":7,"rows_kept":10,"cut":false,"hidden":false,"merged":[[0,6,0,7]]}
[null,null,null,null,null,null,"veeb"]
[null,"Exceli rakenduse struktuur ja põhikomponendid"]
[null,"Töökeskkond ja rakenduse sisu"]
[null,null,"Töökeskkond:"]
[null,null,"kasutajaliides,"]
[null,null,"töövihikud"]
[null,null,"Rakenduse sisu:"]
[null,null,"andmed"]
[null,null,"valemid,"]
[null,null,"VBA protseduurid"]

{"sheet":"Objektid","index":4,"n_rows":1,"n_cols":4,"rows_kept":1,"cut":false,"hidden":false,"merged":[[0,3,0,4]]}
[null,null,null,"Modelleerimine"]

{"sheet":"Klassimudel","index":5,"n_rows":3,"n_cols":8,"rows_kept":3,"cut":false,"hidden":false,"merged":[[0,3,0,4]]}
[null,null,null,"Modelleerimine"]
[]
[null,null,null,null,null,null,null,"Võrdluseks"]

{"sheet":"Liides_2016","index":6,"n_rows":1,"n_cols":2,"rows_kept":1,"cut":false,"hidden":false,"merged":[]}
[null,"Excel 2016 kasutajaliides"]

{"sheet":"Liidesed","index":7,"n_rows":40,"n_cols":2,"rows_kept":40,"cut":false,"hidden":false,"merged":[]}
[]
[]
["Exceli erinevate versioonide kasutajaliidesed"]
[]
[]
[]
[]
[]
[]
[]
[]
[]
[]
[]
[]
[]
[]
[]
[]
[]
[]
[]
[]
[]
[]
[]
[]
[]
[]
[]
[]
[]
[]
[]
[]
[]
[]
[]
[]
[null,"Goole Sheets"]

{"sheet":"Objektimenüüd","index":8,"n_rows":31,"n_cols":8,"rows_kept":31,"cut":false,"hidden":false,"merged":[]}
[]
[]
[]
[]
[]
[]
[]
[]
[]
[]
[]
[]
[]
[]
[]
[]
[]
[null,null,null,null,"Kus on ridade ja veergude menüüd?"]
[]
[]
[]
[]
[]
[]
[]
[]
[]
[]
[]
[]
[null,null,null,null,null,null,null,"See on pisike tekst"]

{"sheet":"Töövihik","index":9,"n_rows":7,"n_cols":13,"rows_kept":7,"cut":false,"hidden":false,"merged":[[0,4,0,5],[0,6,0,7]]}
[null,null,null,null,"veeb",null,"ekraanivisioon"]
["Töövihik",null,null,null,null,null,null,null,null,null,null,"Nimi","Palk"]
[null,null,null,null,null,null,null,null,null,null,null,"Kask",1399]
[null,null,null,null,null,null,null,null,null,null,null,"Saar",870]
[null,null,null,null,null,null,null,null,null,null,null,"Paju",2400]
[null,null,null,null,null,null,null,null,null,null,null,"Tamm",5600]
[null,null,null,null,null,null,null,null,null,null,null,"Lepp",1500]

{"sheet":"Tööleht","index":10,"n_rows":31,"n_cols":16,"rows_kept":31,"cut":false,"hidden":false,"merged":[[0,5,0,6],[0,8,0,9]]}
[null,null,null,null,null,"veeb",null,null,"Videoklipp"]
[null,"Tööleht - struktuur, põhiomadused"]
[null,null,null,null,null,null,null,null,null,null,"Müügid (tuh. eur.)",null,null,"F9"]
[null,null,null,null,null,null,null,null,null,null,"Kv","Liha","Piim","Suhkur","Kokku"]
[null,null,null,null,null,null,null,null,null,null,1,{"$f":"100+INT(200*RAND())","v":119},{"$f":"100+INT(200*RAND())","v":275},129,{"$f":"SUM(L5:N5)","v":523}]
[null,null,null,null,null,null,null,null,null,null,2,{"$f":"100+INT(200*RAND())","v":160},221,159,{"$f":"SUM(L6:N6)","v":540}]
[null,null,null,null,null,null,null,null,null,null,3,{"$f":"100+INT(200*RAND())","v":268},111,289,{"$f":"SUM(L7:N7)","v":668}]
[null,null,null,null,null,null,null,null,null,null,4,{"$f":"100+INT(200*RAND())","v":248},226,179,{"$f":"SUM(L8:N8)","v":653}]
[null,null,null,null,null,null,null,null,null,null,"Kokku",{"$f":"SUM(L5:L8)","v":795},{"$f":"SUM(M5:M8)","v":833},{"$f":"SUM(N5:N8)","v":756},{"$f":"SUM(O5:O8)","v":2384}]
[]
[]
[]
[]
[]
[]
[]
[]
[]
[]
[]
[]
[]
[]
[]
[]
[]
[]
[]
[]
[]
[null,null,null,null,null,null,null,null,null,null,null,null,null,null,15,"kiirus"]

{"sheet":"Teg_Lehed","index":12,"n_rows":2,"n_cols":9,"rows_kept":2,"cut":false,"hidden":false,"merged":[[0,5,0,6],[0,8,0,9]]}
[null,null,null,null,null,"veeb",null,null,"Videoklipp"]
[null,"Põhitegevused lehtedega"]

{"sheet":"Lahtriplokk","index":13,"n_rows":2,"n_cols":10,"rows_kept":2,"cut":false,"hidden":false,"merged":[[0,6,0,7],[0,9,0,10]]}
[null,null,null,null,null,null,"veeb",null,null,"Videoklipp 1"]
[null,"Lahtrid, lahtriplokid, piirkonnad"]

{"sheet":"LP_Omadused","index":14,"n_rows":18,"n_cols":11,"rows_kept":18,"cut":false,"hidden":false,"merged":[]}
[null,null,null,null,"veeb","videoklipp 1"]
[]
[null,"Lahtrite ja lahtriplokkide põhiomadused",null,null,null,"maksuvaba",170,"prots",0.2]
[]
[null,"Omadus",null,"Nimi","Tariif","Tunde","Palk","Maks","Saada"]
[null,"aadress",null,"Ivo Kask",12,153,{"$f":"E6*F6","v":1836},{"$f":"IF(G6 <= G3, 0, I3 * (G6-G3))","v":333.20000000000005},{"$f":"G6-H6","v":1502.8}]
[null,"nimi",null,"Ivo Kask",12,153,{"$f":"Tariif * Tunde","v":1836},{"$f":"IF(Palk <= maksuvaba, 0, prots * (Palk -maksuvaba))","v":333.20000000000005},{"$f":"Palk-Maks","v":1502.8}]
[null,"väärtus",null,13,"tekst","2005-04-20",true]
[null,"valem ",null,{"$f":"D8+100","v":113},{"$f":"\"See on \" &E8","v":"See on tekst"},{"$f":"F8+100","v":"2005-07-29"},{"$f":"F9<F8","v":false}]
[null,"väärtuse esitusviis",null,13,13,13,0.13,13,{"$f":"NOW()","v":"2016-09-04T10:10:07.470"},{"$f":"NOW()","v":"2016-09-04T10:10:07.470"}]
[null,"joondus",null,"vasakule","keskele","paremale",13,13,13]
[null,"taane",null,"null","üks","kaks","kolm","neli","Taane",null,"vormindamine"]
[null,"kirja omadused",null,"väike 13","suur 13","punane 13","kaldu 13",null,"null"]
[null,"interjöör",null,null,13,13,13,null,"üks"]
[null,"äärised",null,null,null,null,13,null,"kaks"]
[null,"kommentaar",null,"lisamine","lisage siia kommentaar",null,null,null,"kolm"]
[null,"hüperlink",null,"sisukord","TTÜ","vormindamine",null,null,"neli"]
[null,"..."]

{"sheet":"LP_Tegev","index":15,"n_rows":17,"n_cols":18,"rows_kept":17,"cut":false,"hidden":false,"merged":[[0,6,0,7],[0,8,0,9]]}
[null,null,null,null,"veeb",null,"videoklipp 2",null,"videoklipp 3",null,null,"AS Karu & pojad",null,null,"Puidu müük",null,"august",2013]
[]
[null,null,null,null,null,null,null,null,null,null,null,"Kuupäev","liik","sort","hind","kogus","summa","Ostja"]
[null,null,null,null,null,null,null,null,null,null,null,"2013-08-01","kuusik",1,55,34.799999999999997,{"$f":"O4*P4","v":1913.9999999999998},"Jänes"]
[null,null,null,null,null,null,null,null,null,null,null,"2013-08-01","kask",1,48,45,2160,"Hunt"]
[null,null,null,null,null,null,null,null,null,null,null,"2013-08-01","kuuskgjhy",3,52,25.2,1310.3999999999999,"Siil"]
[null,null,null,null,null,null,null,null,null,null,null,"2013-08-03","küte",1,14.5,56.2,814.90000000000009,"Rebane"]
[null,null,null,null,null,null,null,null,null,null,null,"2013-08-03","haab",2,25,64.8,1620,"Hunt"]
[null,null,null,null,null,null,null,null,null,null,null,"2013-08-04","mänd",2,53,21,1113,"Põder"]
[null,null,null,null,null,null,null,null,null,null,null,"2013-08-04","lepp",1,42,34.5,1449,"Hunt"]
[null,null,null,null,null,null,null,null,null,null,null,"2013-08-04","vaher",1,67.5,63,4252.5,"Rebane"]
[null,null,null,null,null,null,null,null,null,null,null,"2013-08-04","kask",1,48,45,2160,"Mäger"]
[null,null,null,null,null,null,null,null,null,null,null,"2013-08-06","lepp",2,39,25,975,"Jänes"]
[null,null,null,null,null,null,null,null,null,null,null,"2013-08-07","haab",1,36,32,1152,"Sokk"]
[null,null,null,null,null,null,null,null,null,null,null,"2023-08-08","kuusk",3,52,45.2,2350.4,"Kits"]
[]
[null,null,null,null,null,null,null,null,null,null,null,null,null,null,"Kokku"]

{"sheet":"LP_Harj","index":16,"n_rows":22,"n_cols":14,"rows_kept":22,"cut":false,"hidden":false,"merged":[]}
[null,null,null,null,null,"veeb"]
[null,"Lahtriplokid. Harjutus"]
[]
[null,"Tabel 1",null,null,null,null,null,null,null,"Tabel 2"]
[]
[null,null,"T_2","T_1","T_5","T_6","T_3","T_4"]
[null,"R_2",3,2,6,7,4,5,null,null,"V_1","V_2","V_3","V_4"]
[null,"R_5",6,5,9,10,7,8,null,"P_1",11,12,13,14]
[null,"R_3",4,3,7,8,5,6,null,"P_2",12,13,14,15]
[null,"R_4",5,4,8,9,6,7,null,"P_3",13,14,15,16]
[null,"R_9",10,9,13,14,11,12,null,"P_4",14,15,16,17]
[null,"R_8",9,8,12,13,10,11,null,"P_5",15,16,17,18]
[null,"R_1",2,1,5,6,3,4]
[null,"R_6",7,6,10,11,8,9]
[null,"R_7",8,7,11,12,9,10]
[]
[]
[null,null,"Tabel 3"]
[]
[null,null,null,"S_1","S_2","S_3","S_4"]
[null,null,"U_1",21,22,23,24]
[null,null,"U_2",22,23,24,25]

{"sheet":"Read_Veerud","index":17,"n_rows":10,"n_cols":21,"rows_kept":10,"cut":false,"hidden":false,"merged":[[0,4,0,6]]}
[null,null,null,null,"Videoklipp: Read ja veerud",null,null,null,"veeb"]
[1,1,1,1,1,1,1,1,1,1,null,1,2,3,4,5,6,7,null,null,7]
[2,2,2,2,2,2,2,2,2,2,null,1,2,3,4,5,6,7,null,null,7]
[3,3,3,3,3,3,3,3,3,3,null,1,2,3,4,5,6,7,null,null,7]
[4,4,4,4,4,4,4,4,4,4,null,1,2,3,4,5,6,7,null,null,7]
[5,5,5,5,5,5,5,5,5,5,null,1,2,3,4,5,6,7,null,null,7]
[6,6,6,6,6,6,6,6,6,6,null,1,2,3,4,5,6,7,null,null,7]
[7,7,7,7,7,7,7,7,7,7,null,1,2,3,4,5,6,7,null,null,7]
[null,null,null,null,null,null,null,null,null,null,null,1,2,3,4,5,6,7,null,null,7]
[null,null,null,null,null,null,null,null,null,null,null,1,2,3,4,5,6,7,null,null,7]

{"sheet":"Re_Ve_H1","index":18,"n_rows":19,"n_cols":35,"rows_kept":19,"cut":false,"hidden":false,"merged":[]}
[null,4,10,5,6,7,2,3,8,9,11,"L",null,"K",null,null,null,null,"K","K"]
[10,null,null,null,null,null,null,null,null,null,10,null,null,null,null,0.13217000000000001]
[2,null,null,null,null,null,null,null,null,null,2,null,null,null,null,"Täna on"," "]
[3,null,null,null,null,null,null,null,null,null,3,null,null,null,null,{"$f":"TODAY()","v":"2016-09-04"}]
[7,null,null,null,null,null,null,null,null,null,7,null,null,null,null,"Kasemets"," ",null,null,null,null,null,null,null,null,null,null,null,null,null,null,null,null,null," "]
[4,null,null,null,null,null,null,null,null,null,4,null,null,null,null,"kell on"]
[5,null,null,null,null,null,null,null,null,null,5,null,null,null,null,{"$f":"NOW()","v":42617.423697569444}]
[8,null,null,null,null,null,null,null,null,null,8,null,null,null,null,13670]
[6,null,null,null,null,null,null,null,null,null,6,null,null,null,null,"Raivo"]
[9,null,null,null,null,null,null,null,null,null,9,null,null,null,null,27.428999999999998]
[11,4,10,5,6,7,2,3,8,9,11]
["L"]
[]
[]
["K"]
[]
["K"]
[]
["K"]

{"sheet":"Formaat","index":19,"n_rows":25,"n_cols":15,"rows_kept":25,"cut":false,"hidden":false,"merged":[]}
[null,null,null,null,null,"Ülesanne: (võrrelge tulemusega paremal)",null,null,null,null,null,null,null,null,"Tulemus võrdluseks"]
[null,"Veerust laiem tekst",null,null,null,"Joonda tekst (lahtris B2) parema serva järgi"]
[null,"Veerust laiem tekst",null,null,null,"Tsentreeri tekst (lahtris B3) üle lahtrite B3:D3"]
[null,"Veerust laiem tekst",null,null,null,"Murra teksti"]
[]
[null,"xy",null,null,null,"Joonda tekst paremale"]
[null,"xy",null,null,null,"Tsentreeri tekst ja määra kaldkiri"]
[null,"xy",null,null,null,"Täida lahter servast servani tekstiga"]
[]
[null,"vert",null,null,null,"kuva tekst vertikaalselt (tähed üksteise all, mitte kõrval)"]
[null,"alt üles",null,null,null,"keera tekst külili suunaga alt üles"]
[null,"ülalt alla",null,null,null,"keera tekst külili suunaga ülalt alla"]
[null,"keratud",null,null,null,"keera tekst 45° võrra üles"]
[]
[null,"Times new roman",null,null,null,"sinine kahekordselt allajoonitud tekst fondiga \"Times new roman\" suurusega 14 pt"]
[]
[null,"KIRJU",null,null,null,"lahtri muster: rohelisel põhjal punased triibud"]
[]
[null,"raamjooned",null,null,null,"lahtri ülaserva sinine joon ja alaserva punane topeltjoon"]
[null,"kommentaar",null,null,null,"lisage lahtrile kommentaar: See on kommentaar"]
[null,"null"]
[null,"üks",null,null,null,"lisage lahtrile üks taane"]
[null,"kaks",null,null,null,"lisage lahtrile kaks taanet"]
[null,"kolm",null,null,null,"lisage lahtrile kolm taanet"]
[null,"TTÜ",null,null,null,"lisage lahtrile hüperlink TTÜ kodulehele"]

{"sheet":"Number Format","index":20,"n_rows":12,"n_cols":9,"rows_kept":12,"cut":false,"hidden":false,"merged":[]}
[]
[null,"Number kategooria erinevad variandid","Currency kategooria erinevad variandid","Accounting","Fraction","Percentage","Scientific","Date ning Time kategooriate erinevad variandid","Text"]
[null,-45350.455000000002,-45350.455000000002,-350.45499999999998,6.7000000000000002E-3,6.7000000000000002E-3,6.7000000000000002E-3,39350.464290000004,-350.45499999999998]
[null,-45350.455000000002,-45350.455000000002,417.05,2.0499999999999998,2.0499999999999998,2.0499999999999998,39350.464290000004,417.05]
[null,-45350.455000000002,-45350.455000000002,55.55,0.47,0.47,0.47,39350.464290000004,72]
[null,-45350.455000000002,-45350.455000000002,72,-15.8,-15.8,-15.8,39350.464290000004,981.33330000000001]
[null,null,null,981.33330000000001,null,null,null,39350.464290000004,-35]
[null,null,null,-35,null,null,null,39350.464290000004,-417.82]
[null,null,null,-417.82,null,null,null,39350.464290000004,55.55]
[null,null,null,null,null,null,null,39350.464290000004]
[null,null,null,null,null,null,null,39350.464290000004]
[null,null,null,null,null,null,null,39350.464290000004]

{"sheet":"Värvilised summad","index":21,"n_rows":20,"n_cols":11,"rows_kept":20,"cut":false,"hidden":false,"merged":[]}
[]
[null,null,null,null,null,null,null,"Reasummad",null,null,"Värvilised summad"]
[]
[null,16,18.809999999999999,-15,798,4.3579999999999997]
[null,32,113,45,654,12]
[null,57,-45,987,-36,-64]
[null,5.5789999999999997,-78,45,-9652,-88]
[null,-8,-66.67,3223,-54,0]
[null,19,23,1563,13,-6876]
[null,44.12,91,168,737,32]
[null,787,121,-976,646,113]
[null,21,45.45,-56,151,787]
[null,97,952,2,453,-65]
[null,-97,13,0.27500000000000002,-81,32.700000000000003]
[null,-11,77,0.15,79,54]
[null,0,153,384,-99,79.5]
[null,79.08,1.0049999999999999,-6.45,-999,-33.33]
[null,55,-30,12,-9999,-8]
[]
["Veerusummad"]

{"sheet":"Kontroll","index":22,"n_rows":22,"n_cols":11,"rows_kept":22,"cut":false,"hidden":false,"merged":[]}
[]
[]
[null,null,null,null,null,null,null,"Reasummad",null,null,"Värvilised summad"]
[]
[null,null,null,null,null,null,null,822.16799999999989,null,null,2793]
[null,null,null,null,null,null,null,856,null,null,81.16]
[null,null,null,null,null,null,null,899,null,null,-20068]
[null,null,null,null,null,null,null,-9767.4210000000003,null,null,177.417]
[null,null,null,null,null,null,null,3094.33,null,null,1469]
[null,null,null,null,null,null,null,-5258]
[null,null,null,null,null,null,null,1072.1199999999999,null,null,-15547.422999999999]
[null,null,null,null,null,null,null,691]
[null,null,null,null,null,null,null,948.45]
[null,null,null,null,null,null,null,1439]
[null,null,null,null,null,null,null,-132.02500000000001]
[null,null,null,null,null,null,null,199.15]
[null,null,null,null,null,null,null,517.5]
[null,null,null,null,null,null,null,-958.69500000000005]
[null,null,null,null,null,null,null,-9970]
[]
["Veerusummad",1096.779,1388.595,5375.9749999999995,-17389,-6019.7719999999999,null,null,-15547.423000000003]
[null,null,null,null,null,null,null,-15547.422999999999]

{"sheet":"Juhus","index":23,"n_rows":64,"n_cols":13,"rows_kept":64,"cut":false,"hidden":false,"merged":[]}
[]
[null,"Juhuslikud arvud. Funktsioon RAND()"]
[]
[]
[]
[]
[]
[]
[]
[null,"mini",1,"maxi",64]
[null,null,null,null,null,null,null,null,null,null,null,null,"keskmine"]
[null,31,56,47,46,23,25,6,34,64,16,null,{"$f":"IF(INDEX(numbrid, 10)=\"\", \"\", AVERAGE(numbrid))","v":34.799999999999997}]
[]
[]
[]
[]
[]
[]
[]
[]
[]
[]
[]
[]
[]
[]
[]
[]
[]
[]
[]
[]
[]
[]
[]
[null,null,null,null,null,null,null,null,{"$f":"b * RAND()","v":7.1410218683141231},99.58693057643454,19.158250952878163,32.128195163030647]
[null,null,null,null,null,null,null,null,30.441414365245834,60.536039130683697,49.697436643461266,21.913506132718009]
[null,null,null,null,null,null,null,null,96.415611717701594,73.975315179033387,2.525119700585321,62.568417460200919]
[null,null,null,null,null,null,null,null,31.294436243717747,10.386808262925785,31.342791567310581,15.992589560025227]
[null,null,null,null,null,null,null,null,77.7564522081896,72.508032949162995,59.374776126517183,96.347347786736648]
[null,null,null,null,null,null,null,null,31.410798406478101,34.020689362107625,56.211779525224856,96.56132582245705]
[]
[]
[]
[]
[]
[]
[]
[]
[]
[]
[]
[]
[]
[]
[]
[]
[]
[]
[]
[]
[]
[]
[null,null,null,null,null,null,null,null,"a",1,"b",100]